Cogmind - Beta 14 *** ADVENTURER MODE // 2024.12.30 @ 10:48:49 Player: keeta Result: Destroyed by D-53 Grenadier with Mini Grenade Launcher Performance ------------- Evolutions (0) 0 Regions Visited (2) 400 Robots Destroyed (10) 50 Value Destroyed (294) 294 Prototype IDs (2) 40 Alien Tech Used (0) 0 Bonus (0) 0 TOTAL SCORE: 784 Bonus ------- None Cogmind --------- Core Integrity 0/250 Matter 300/300 Energy 94/100 System Corruption 0% Temperature Cool (15) Movement Walking (120) Location -10/Mines Parts ------- > --- POWER (1) -------- (None) > --- PROPULSION (2) --- Aluminum Leg Aluminum Leg > --- UTILITY (2) ------ Sensor Array Signal Interpreter > --- WEAPON (2) ------- Medium Laser > --- INVENTORY (5) ---- Ion Engine Aluminum Leg Heat Sink Heat Sink Small Storage Unit Peak State ------------ > --- POWER ------------ Ion Engine > --- PROPULSION ------- Aluminum Leg Aluminum Leg > --- UTILITY ---------- Heat Sink Visual Processing Unit > --- WEAPON ----------- Medium Laser Medium Laser > --- INVENTORY -------- Ion Engine Aluminum Leg Heat Sink Small Storage Unit [Rating: 8] Favorites ----------- Power Ion Engine Engine Ion Engine Propulsion Aluminum Leg Leg Aluminum Leg Utility Small Storage Unit Device Terrain Scanner Storage Small Storage Unit Processor Signal Interpreter Weapon Medium Laser Energy Gun Medium Laser Ballistic Gun Assault Rifle Build | -11 -10 -10 ------- Run | Yrd Mat Min Slots Evolved . | . . . Power . | . . . Propulsion . | . . . Utility . | . . . Weapon . | . . . Parts Attached 20 | 6 13 1 Power 3 | 1 2 . Engine 3 | 1 2 . Core . | . . . Reactor . | . . . Propulsion 4 | 2 1 1 Treads . | . . . Leg 4 | 2 1 1 Wheel . | . . . Hover . | . . . Flight . | . . . Utility 7 | 1 6 . Device 4 | . 4 . Storage 1 | 1 . . Processor 2 | . 2 . Hackware . | . . . Protection . | . . . Artifact . | . . . Weapon 6 | 2 4 . Energy Gun 4 | . 4 . Energy Cannon . | . . . Ballistic Gun 2 | 2 . . Ballistic Cannon . | . . . Launcher . | . . . Special Weapon . | . . . Impact Weapon . | . . . Slashing Weapon . | . . . Piercing Weapon . | . . . Special Melee Weapon . | . . . Unidentified Prototypes . | . . . Parts Lost 3 | . 1 2 Power 2 | . 1 1 Propulsion . | . . . Utility . | . . . Weapon 1 | . . 1 Highest Loss Streak 2 | . 1 2 To Critical Strikes . | . . . Average Slot Usage (%) 99 | . 99 98 Engine 13 | . 13 13 Leg 28 | . 28 28 Device 13 | . 13 14 Storage 8 | . 11 . Processor 5 | . 2 14 Energy Gun 19 | . 16 27 Ballistic Gun 8 | . 11 . Peak Build Rating 8 | 6 8 7 Average Rating 6 | 4 6 6 On Entrance 4 | . 6 7 Naked Turns . | . . . Heaviest Build 15 | 13 15 10 Greatest Support 20 | 20 20 20 Greatest Overweight (x) . | . . . Average Overweight (x) . | . . . Largest Inventory Capacity 8 | 8 8 5 Average Capacity 6 | 6 7 5 Most Carried 7 | 1 7 5 Average Carried 4 | . 4 5 Final Capacity 8 | 8 5 5 Final Carried 5 | 1 5 5 Class Distribution -------------------- 63% | Mutant 36% | Scavenger-Mutant Dominant Class ---------------- Mutant | -10/Materials Scavenger-Mutant | -10/Mines Resources | -11 -10 -10 ----------- Run | Yrd Mat Min Matter Collected 479 | 220 199 60 Remotely . | . . . Salvage Created 329 | . 231 98 Parts 21 | . 18 3 Haulers Intercepted . | . . . Recyclers Shooed . | . . . Parts Field Recycled . | . . . Retrieved Matter . | . . . Parts Self-Destructed . | . . . Prevented . | . . . Kills | -11 -10 -10 ------- Run | Yrd Mat Min Combat Hostiles Destroyed 10 | . 8 2 Guns 10 | . 8 2 Classes Destroyed 2 | . 2 . Swarmer 3 | . 3 . Grunt 7 | . 5 2 Best Kill Streak 3 | . 3 2 Combat Bots Only 3 | . 3 2 Max Kills in Single Turn 2 | . 2 1 Gunslinging 1 | . 1 . Exploded . | . . . Melee . | . . . Uniques/NPCs Destroyed . | . . . Combat | -11 -10 -10 -------- Run | Yrd Mat Min Hostile Shots Fired 58 | . 39 19 Missed 20 | . 18 2 Damage Taken 610 | . 239 371 Core 262 | . 82 180 Absorbed by Shields . | . . . Ignored by Resistances 180 | . 71 109 Core Remaining (%) 100 | 100 . . Volleys Fired 35 | . 26 9 Largest 2 | . 2 2 Hottest 100 | . 100 100 Shots Fired 67 | . 52 15 Gun 67 | . 52 15 Cannon . | . . . Launcher . | . . . Special . | . . . Kinetic 31 | . 31 . Thermal 36 | . 21 15 Explosive . | . . . Electromagnetic . | . . . Robot Hit Streak 12 | . 12 11 Robot Miss Streak 4 | . 4 1 Penetration Max . | . . . Secondary Targets 3 | . 3 . Max Gunslinging Chain 1 | . 1 . Shots Hit Robots 51 | . 39 12 Core Hits 25 | . 17 8 Critical Kills . | . . . Critical Parts Destroyed . | . . . Critical Strikes 1 | . . 1 Burn 1 | . . 1 Melee Attacks . | . . . Impact . | . . . Slashing . | . . . Piercing . | . . . Sneak Attacks . | . . . Combat Hostiles . | . . . Follow-up Attacks . | . . . Damage Inflicted 607 | . 450 157 Guns 599 | . 450 149 Cannons . | . . . Explosions . | . . . Melee . | . . . Ramming 8 | . . 8 Kinetic 256 | . 256 . Thermal 343 | . 194 149 Explosive . | . . . Electromagnetic . | . . . Impact . | . . . Slashing . | . . . Piercing . | . . . Highest Corruption . | . . . Average Corruption . | . . . Corruption Purged . | . . . Corruption Blocked . | . . . Overload Shots . | . . . Overflow Damage . | . . . Projectiles . | . . . Explosions . | . . . Melee . | . . . Knockbacks . | . . . Impact . | . . . Kinetic . | . . . Secondary . | . . . Self-Inflicted Damage . | . . . Shots . | . . . Rammed . | . . . Targets Rammed 1 | . . 1 Kicked 1 | . . 1 Crushed . | . . . Highest Temperature 258 | . 51 258 Average Temperature 53 | . 17 102 Received Heat Transfer 243 | . 174 69 Siege Activations . | . . . Robots Corrupted . | . . . Combat Hostiles . | . . . Parts Fried . | . . . Impact Corruptions . | . . . Robots Melted . | . . . Combat Hostiles . | . . . Parts Melted 2 | . 1 1 Heat Transferred 991 | . 473 518 Parts Sabotaged . | . . . Parts Stolen . | . . . Parts Stripped . | . . . Power Chain Reactions . | . . . Alert | -11 -10 -10 ------- Run | Yrd Mat Min Peak Influence 260 | . 260 89 Initial 24 | . . 24 Average 110 | . 131 86 Maximum Alert Level 1 | . 1 . Low Security (%) 82 | 100 73 100 Level 1 17 | . 26 . Level 2 . | . . . Level 3 . | . . . Level 4 . | . . . Level 5 . | . . . High Security . | . . . Max Security . | . . . Squads Dispatched . | . . . Investigation . | . . . Extermination . | . . . Reinforcement . | . . . Assault . | . . . Garrison . | . . . Intercept . | . . . Searches Triggered . | . . . Construction Impeded . | . . . Haulers Reinforced . | . . . Active Scanning Responses . | . . . Cargo Convoy Interrupts . | . . . Stealth | -11 -10 -10 --------- Run | Yrd Mat Min Distress Signals 1 | . 1 . Communications Jammed . | . . . Distress Signals . | . . . Times Spotted 18 | . 14 4 Peak Tracking Total 4 | . 4 2 Tactical Retreats 3 | . 3 . Traps | -11 -10 -10 ------- Run | Yrd Mat Min Traps Triggered 1 | . 1 . Indirectly . | . . . Trap Hack Attempts . | . . . Triggered . | . . . Disarmed . | . . . Reprogrammed . | . . . Reused . | . . . Traps Extracted . | . . . Installed . | . . . Triggered . | . . . Machines | -11 -10 -10 ---------- Run | Yrd Mat Min Machines Disabled . | . . . Max in Single Turn . | . . . Machines Repaired . | . . . Machines Dismantled . | . . . Machines Sabotaged . | . . . Overloaded Fab Kills . | . . . Hacking | -11 -10 -10 --------- Run | Yrd Mat Min Machines Accessed 4 | . 4 . Terminals 3 | . 3 . Fabricators . | . . . Repair Stations . | . . . Recycling Units 1 | . 1 . Scanalyzers . | . . . Garrison Access . | . . . Total Hacks 10 | . 10 . Successful 6 | . 6 . Failed 4 | . 4 . Catastrophic . | . . . Database Lockouts . | . . . Manual . | . . . Terminals 6 | . 6 . Fabricators . | . . . Repair Stations . | . . . Recycling Units 4 | . 4 . Scanalyzers . | . . . Garrison Access . | . . . Terminal Hacks 4 | . 4 . Record 1 | . 1 . Prototype ID Bank 1 | . 1 . Branch Access Points 1 | . 1 . Locate Traps 1 | . 1 . Fabricator Hacks . | . . . Repair Station Hacks . | . . . Recycling Unit Hacks 2 | . 2 . Report Inventory 1 | . 1 . Retrieve Components 1 | . 1 . Scanalyzer . | . . . Garrison Access Hacks . | . . . Unauthorized Hacks . | . . . Terminals . | . . . Fabricators . | . . . Repair Stations . | . . . Recycling Units . | . . . Scanalyzers . | . . . Garrison Access . | . . . Data Cores Recovered . | . . . Used . | . . . Hacking Detections 3 | . 3 . Full Trace Events . | . . . Feedback Events . | . . . Feedback Blocked . | . . . Robot Schematics Acquired . | . . . Robots Built . | . . . Authchips . | . . . Time . | . . . Total Robot Build Rating . | . . . Part Schematics Acquired . | . . . Parts Built . | . . . Authchips . | . . . Time . | . . . Total Part Build Rating . | . . . Parts Repaired . | . . . Time . | . . . Parts Recycled . | . . . Recycled Matter . | . . . Retrieved Matter . | . . . Retrieved Components 9 | . 9 . Parts Scanalyzed . | . . . Part Schematics Acquired . | . . . Parts Damaged . | . . . Bothacking | -11 -10 -10 ------------ Run | Yrd Mat Min Used RIF Installer . | . . . Robots Hacked . | . . . Non-combat . | . . . Combat . | . . . Robot Hacks Applied . | . . . Relay Couplers Released . | . . . Fabnet Peak Effective % . | . . . Robots Rewired . | . . . Allies Hacked . | . . . Hacks Repelled . | . . . Allies | -11 -10 -10 -------- Run | Yrd Mat Min Total Allies . | . . . Largest Group . | . . . Highest-Rated Group . | . . . Highest-Rated Ally . | . . . Total Orders . | . . . Ally Attacks . | . . . Total Damage . | . . . Kills . | . . . Allies Corrupted . | . . . Allies Melted . | . . . Intel | -11 -10 -10 ------- Run | Yrd Mat Min Robot Analysis Total . | . . . Derelict Logs Recovered . | . . . Drone Launches . | . . . Drone Recoveries . | . . . Exploration | -11 -10 -10 ------------- Run | Yrd Mat Min Turns Passed 909 | 73 625 211 Spaces Moved 637 | 55 428 154 Core 3 | 3 . . Treads . | . . . Legs 634 | 52 428 154 Wheels . | . . . Hover . | . . . Flight . | . . . Fastest Speed 50 | 50 120 120 Average Speed 119 | 116 120 120 Slowest Speed 120 | 120 120 120 Overloaded Moves . | . . . Propulsion Burnouts . | . . . Robots Hopped . | . . . Cave-ins Triggered . | . . . Exploration Rate (%) 31 | 5 71 19 Regions Visited 2 Branch Regions 1 Pre-discovered Areas . | . . . Known Exits Taken 1 | . 1 . Unknown Exits Taken 1 | 1 . . Scrap Searched 1 | . . 1 Spaces Dug . | . . . Terrain Destroyed . | . . . Melee . | . . . Projectile . | . . . AOE . | . . . Terrain Rammed . | . . . Walls Destroyed . | . . . Machines Disabled . | . . . Actions | -11 -10 -10 --------- Run | Yrd Mat Min Total 715 | 61 488 166 Wait 3 | . 3 . Move 635 | 54 427 154 Hop . | . . . Pick Up 11 | 1 10 . Fast Attach 8 | 6 2 . Attach 3 | . 3 . Detach 2 | . 2 . Swap 9 | . 8 1 Drop 8 | . 7 1 Fire 35 | . 26 9 Melee . | . . . Ram . | . . . Kick 1 | . . 1 Crush . | . . . Escape Stasis . | . . . Rewire . | . . . Trap . | . . . Miscellaneous . | . . . Route ------- -11/Scrapyard -10/Materials (discovered 4 exits: *Mat x2 / *Min x2) -10/Mines (discovered 2 exits: *Mat / *Exi) History --------- Turn | Location | Event 6 | -11/Scrapyard | Discovered new exit (range 16) 74 | -11/Scrapyard | Entered Materials 96 | -10/Materials | Discovered new exit (range 3) 280 | -10/Materials | Discovered new exit (range 5) 317 | -10/Materials | Build established: Mutant 511 | -10/Materials | Discovered new exit (range 3) 554 | -10/Materials | Discovered new exit (range 13) 603 | -10/Materials | Identified exit to Mines 699 | -10/Materials | Entered Mines 736 | -10/Mines | Deemed a non-threat by the Exiles lab entrance 738 | -10/Mines | Discovered new exit (range 5) 742 | -10/Mines | Identified exit to Exiles 794 | -10/Mines | Discovered new exit (range 6) 802 | -10/Mines | Identified exit to Materials 872 | -10/Mines | Build established: Scavenger-Mutant 886 | -10/Mines | Assembled infested the area 899 | -10/Mines | Core integrity fell below 50% 905 | -10/Mines | Core integrity fell below 20% 910 | -10/Mines | Destroyed by D-53 Grenadier with Mini Grenade Launcher Last Messages --------------- EXIT=FOUND EXIT=IDENTIFIED: MATERIALS K-01 Serf collects debris. Searching scrap... Found Signal Interpreter. Found Lrg. Storage Unit. Found 41 Matter. Found Med. Battery. Found 33 Matter. Acquired 10 matter. ALERT: Infestation in the mines, dispatching Demolisher response squad. Kicked R-06 Scavenger out of the way. C-30 ARC bursts open, deploying its payload. D-53 Grenadier unfolds itself. Med. Laser destroyed. The unstable cave ceiling collapses. D-53 Grenadier suffers critical hit (Burn). Ion Engine destroyed. The unstable cave ceiling collapses. Map ----- +----------------------------------------------------+ | ?????????????????????????????????? | | ?????????????????????????????????? | | ?????????????????????????????????? | | ?????????????????????????????????? | | ?????????????????????????????????? | | ?????????????????????????????????? | | ?????????????????????????????????? | | ?????????????????????????????????? | | ?????????????????????????????????? | | ?????????????????????????????????? | | ?????????????????????????????????? | | ?????????????????????????????????? | | ????????????????????????###??????? | | ???????????????????????? #??????? | | ????????????????????????# #??????? | | ????????????????????????# #??????? | | ????????????????????????# #??????? | | ????????????????????????# ###????? | | ????????????????????????# #????? | | ????????????????????????### ###??? | | ??????????????????????### # ###? | | ?????????????????????## ## | | ?????????????????????# ## | | ????????????????????## # | | ????????????????????# #? | | ????????????????????# @ # | | ????????????????????# # # | | ????????????????????# ## | | ????????????????????## ! ###? | | ?????????????????????## dd#??? | | ??????????????????????###### #??? | | ???????????????????????????# #??? | | ??????????????????????????## ##?? | | ??????????????????????????# " #?? | | ??????????????????????????# %" #?? | | ??????????????????????????# " #?? | | ?????????????????????????## ##?? | | ???????????????????????### ##??? | | ??????????????####????## ##??? | | ??????????##### ##???# """ ##?? | | ??????????# ##### """ ##? | | ???????????# """ #? | | ???????????#### #### #? | | ??????????????# ##??# ## ##? | | ??????????????# ###???# ######?? | | ??????????????# #????## ##?????? | | ??????????????# #????# < #?????? | | ??????????????# #???## #?????? | | ??????????????# ##### #?????? | | ??????????????# ## ##?????? | +----------------------------------------------------+ Best States ------------- Heat Dissipation 35 Energy Generation 10 Energy Capacity 250 Matter Stores 300 Matter Capacity 300 Sight Range 18 Robot Scan Range 14 Terrain Scan Range 14 Terrain Scan Density 10 Resistance: KI 20 Resistance: TH 20 Resistance: EX 20 Resistance: EM 20 Resistance: I 20 Resistance: S 20 Resistance: P 20 Evasion (%) 55 Offensive Hacking 10 Item Schematics ----------------- None Robot Schematics ------------------ None Fabricated ------------ Nothing Alien Tech Used ----------------- None Achievements -------------- None Challenges ------------ None Game ------ Seed CentriumThunderArray Manual? 0 Play Time 00:24:48 Cumulative 3.9 hours Start 2024.12.30 @ 00:33:08 End 2024.12.30 @ 10:48:49 Sessions 7 Manual Loads 0 Difficulty Adventurer Special Mode None Game No. 4 Rogue 0 Adventurer 4 Explorer 0 Win Type - Total 0 Types 0/0/0/0/0/0/0/0/0 Lore% 3 Gallery% 7 Achievement% 9 Wizard Run 0 Options --------- Layout 1 ASCII 0 Keyboard 0 Movement Arrows Keybinds 0 Fullscreen 1 Font 32/SmallcapsGlow Map View 50x35 Zoom Use 0% Tactical HUD 0 Map Filters NONE Filters NONE Steam 1 RUN: dc546082-c9c8-4dcc-8f02-b300127fac95